fUSD/lending_fUSD_20240426
["ID","MTS","AMOUNT","RATE_DAILY","PERIOD"]
[323688776,1714165851052,-500.0,0.00011232,2]
[323688777,1714165851062,-500.0,0.00011232,2]
[323688778,1714165851071,-746.33,0.00011232,2]
[323688779,1714165851080,-1131.17,0.00011232,2]
[323688780,1714165851090,-500.0,0.00011232,2]
[323688781,1714165851099,-500.0,0.00011232,2]
[323688782,1714165851110,-1362.32,0.00011232,2]
[323688783,1714165851119,-635.79,0.00011232,2]
[323688784,1714165851129,-500.0,0.00011232,2]
[323688785,1714165851138,-1226.03,0.00011232,2]
[323688786,1714165851147,-6474.87,0.00011232,2]
[323688787,1714165851156,-1261.3,0.00011232,2]
[323688788,1714165851166,-626.49,0.00011232,2]
[323688789,1714165851175,-2565.0,0.00011232,2]
[323688790,1714165851184,-5265.92,0.00011232,2]
[323688791,1714165851193,-500.0,0.00011232,2]
[323688792,1714165851203,-502.36339291,0.00011232,2]
[323688793,1714165851212,-7575.76,0.00011232,2]
[323688794,1714165851222,-500.0,0.00011232,2]
[323688795,1714165851231,-959.47,0.00011232,2]
[323688796,1714165851240,-358.14344146,0.00011232,2]
[323688797,1714165851249,-500.0,0.00011232,2]
[323688798,1714165851259,-894.84,0.00011232,2]
[323688799,1714165851269,-1029.44,0.00011232,2]
[323688800,1714165851282,-500.0,0.00011232,2]
[323688801,1714165851291,-500.0,0.00011232,2]
[323688802,1714165851300,-1594.94,0.00011232,2]
[323688803,1714165851309,-500.0,0.00011232,2]
[323688804,1714165851318,-1585.92,0.00011232,2]
[323688805,1714165851329,-500.0,0.00011232,2]
[323688806,1714165851337,-927.21,0.00011232,2]
[323688807,1714165851346,-29278.54,0.00011232,2]
[323688808,1714165851357,-500.0,0.00011232,2]
[323688809,1714165851367,-598.42,0.00011232,2]
[323688810,1714165851376,-500.0,0.00011232,2]
[323688811,1714165851386,-2169.32,0.00011232,2]
[323688812,1714165851395,-500.0,0.00011232,2]
[323688813,1714165851405,-500.0,0.00011232,2]
[323688814,1714165851415,-500.0,0.00011232,2]
[323688815,1714165851425,-1031.64,0.00011232,2]
[323688816,1714165851434,-500.0,0.00011232,2]
[323688817,1714165851444,-504.37049518,0.00011232,2]
[323688818,1714165851454,-3003.77,0.00011232,2]
[323688819,1714165851464,-500.0,0.00011232,2]
[323688820,1714165851474,-500.0,0.00011232,2]
[323688821,1714165851483,-502.94673927,0.00011232,2]
[323688822,1714165851493,-885.97,0.00011232,2]
[323688823,1714165851502,-500.0,0.00011232,2]
[323688824,1714165851512,-1452.7,0.00011232,2]
[323688825,1714165851521,-500.0,0.00011232,2]
[323688826,1714165851531,-507.73152609,0.00011232,2]
[323688827,1714165851541,-500.0,0.00011232,2]
[323688828,1714165851550,-500.0,0.00011232,2]
[323688829,1714165851559,-500.0,0.00011232,2]
[323688830,1714165851569,-1299.05,0.00011232,2]
[323688831,1714165851579,-964.95,0.00011232,2]
[323688832,1714165851588,-500.0,0.00011232,2]
[323688833,1714165851597,-6953.47,0.00011232,2]
[323688834,1714165851606,-500.0,0.00011232,2]
[323688835,1714165851615,-500.0,0.00011232,2]
[323688836,1714165851623,-2182.8,0.00011232,2]
[323688837,1714165851633,-500.0,0.00011232,2]
[323688838,1714165851642,-598.29,0.00011232,2]
[323688839,1714165851651,-500.0,0.00011232,2]
[323688840,1714165851661,-500.0,0.00011232,2]
[323688841,1714165851671,-500.0,0.00011232,2]
[323688842,1714165851680,-1173.04,0.00011232,2]
[323688843,1714165851690,-2149.24,0.00011232,2]
[323688844,1714165851699,-500.0,0.00011232,2]
[323688845,1714165851709,-831.79,0.00011232,2]
[323688846,1714165851719,-500.0,0.00011232,2]
[323688847,1714165851729,-500.0,0.00011232,2]
[323688848,1714165851738,-223.0,0.00011232,2]
[323688849,1714165851748,-500.0,0.00011232,2]
[323688850,1714165851758,-2022.3,0.00011232,2]
[323688851,1714165851769,-4234.92,0.00011232,2]
[323688852,1714165851778,-1713.59,0.00011232,2]
[323688853,1714165851788,-2096.72,0.00011232,2]
[323688854,1714165851798,-625.39,0.00011232,2]
[323688855,1714165851807,-1338.07,0.00011232,2]
[323688856,1714165851817,-3159.71,0.00011232,2]
[323688857,1714165851827,-15953.33,0.00011232,2]
[323688858,1714165851836,-500.0,0.00011232,2]
[323688859,1714165851846,-629.77,0.00011232,2]
[323688860,1714165851856,-500.0,0.00011232,2]
[323688861,1714165851865,-617.1,0.00011232,2]
[323688862,1714165851875,-500.0,0.00011232,2]
[323688863,1714165851885,-500.0,0.00011232,2]
[323688864,1714165851895,-500.0,0.00011232,2]
[323688865,1714165851905,-2250.5,0.00011232,2]
[323688866,1714165851915,-8716.91,0.00011232,2]
[323688867,1714165851925,-2333.3,0.00011232,2]
[323688868,1714165851937,-500.0,0.00011232,2]
[323688869,1714165851947,-500.0,0.00011232,2]
[323688870,1714165851957,-500.0,0.00011232,2]
[323688871,1714165851966,-500.0,0.00011232,2]
[323688872,1714165851976,-4686.34,0.00011232,2]
[323688873,1714165851986,-500.0,0.00011232,2]
[323688874,1714165851996,-1350.24,0.00011232,2]
[323688875,1714165852006,-500.0,0.00011232,2]
[323688876,1714165852017,-2136.27,0.00011232,2]
[323688877,1714165852026,-500.0,0.00011232,2]
[323688878,1714165852035,-1193.75,0.00011232,2]
[323688879,1714165852045,-1860.65,0.00011232,2]
[323688880,1714165852054,-1152.1,0.00011232,2]
[323688881,1714165852064,-3493.58,0.00011232,2]
[323688882,1714165852074,-720.21,0.00011232,2]
[323688883,1714165852084,-500.0,0.00011232,2]
[323688884,1714165852094,-500.0,0.00011232,2]
[323688885,1714165852104,-1609.49,0.00011232,2]
[323688886,1714165852113,-500.0,0.00011232,2]
[323688887,1714165852123,-743.96,0.00011232,2]
[323688888,1714165852132,-500.0,0.00011232,2]
[323688889,1714165852142,-500.0,0.00011232,2]
[323688890,1714165852153,-500.0,0.00011232,2]
[323688891,1714165852162,-4354.83,0.00011232,2]
[323688892,1714165852173,-902.48,0.00011232,2]
[323688893,1714165852182,-500.0,0.00011232,2]
[323688894,1714165852192,-771.76,0.00011232,2]
[323688895,1714165852202,-937.47,0.00011232,2]
[323688896,1714165852211,-500.0,0.00011232,2]
[323688897,1714165852222,-500.0,0.00011232,2]
[323688898,1714165852232,-500.0,0.00011232,2]
[323688899,1714165852242,-500.0,0.00011232,2]
[323688900,1714165852252,-500.0,0.00011232,2]
[323688901,1714165852261,-563.05,0.00011232,2]
[323688902,1714165852276,-1806.19,0.00011232,2]
[323688903,1714165852286,-500.0,0.00011232,2]
[323688904,1714165852295,-1571.07,0.00011232,2]
[323688905,1714165852306,-500.0,0.00011232,2]
[323688906,1714165852315,-500.0,0.00011232,2]
[323688907,1714165852326,-2572.91,0.00011232,2]
[323688908,1714165852336,-1736.03,0.00011232,2]
[323688909,1714165852348,-4550.03,0.00011232,2]
[323688910,1714165852358,-501.96123762,0.00011232,2]
[323688911,1714165852367,-500.0,0.00011232,2]
[323688912,1714165852377,-500.0,0.00011232,2]
[323688913,1714165852387,-702.48,0.00011232,2]
[323688914,1714165852396,-2483.94,0.00011232,2]
[323688915,1714165852407,-683.53,0.00011232,2]
[323688916,1714165852417,-2118.68,0.00011232,2]
[323688917,1714165852427,-2824.94,0.00011232,2]
[323688918,1714165852437,-2305.98,0.00011232,2]
[323688919,1714165852447,-500.0,0.00011232,2]
[323688920,1714165852457,-1519.98,0.00011232,2]
[323688921,1714165852469,-500.0,0.00011232,2]
[323688922,1714165852479,-500.0,0.00011232,2]
[323688923,1714165852490,-500.0,0.00011232,2]
[323688924,1714165852500,-500.0,0.00011232,2]
[323688925,1714165852511,-500.0,0.00011232,2]
[323688926,1714165852522,-1443.87,0.00011232,2]
[323688927,1714165852532,-5799.26,0.00011232,2]
[323688928,1714165852543,-1079.67,0.00011232,2]
[323688929,1714165852554,-500.0,0.00011232,2]
[323688930,1714165852563,-500.0,0.00011232,2]
[323688931,1714165852573,-2700.57,0.00011232,2]
[323688932,1714165852583,-500.0,0.00011232,2]
[323688933,1714165852593,-1958.57,0.00011232,2]
[323688934,1714165852604,-500.0,0.00011232,2]
[323688935,1714165852614,-500.0,0.00011232,2]
[323688936,1714165852623,-1238.29,0.00011232,2]
[323688937,1714165852633,-2076.33,0.00011232,2]
[323688938,1714165852643,-726.92,0.00011232,2]
[323688939,1714165852653,-503.58743489,0.00011232,2]
[323688940,1714165852662,-2476.96,0.00011232,2]
[323688941,1714165852671,-3054.76,0.00011232,2]
[323688942,1714165852681,-978.83,0.00011232,2]
[323688943,1714165852691,-449.96811448,0.00011232,2]
[323688944,1714165852700,-500.0,0.00011232,2]
[323688945,1714165852710,-500.0,0.00011232,2]
[323688946,1714165852720,-897.14,0.00011232,2]
[323688947,1714165852730,-539.67231145,0.00011232,2]
[323688948,1714165852740,-1563.14,0.00011232,2]
[323688949,1714165852752,-1893.28,0.00011232,2]
[323688950,1714165852764,-500.0,0.00011232,2]
[323688951,1714165852774,-500.0,0.00011232,2]
[323688952,1714165852784,-500.0,0.00011232,2]
[323688953,1714165852794,-900.63,0.00011232,2]
[323688954,1714165852803,-500.0,0.00011232,2]
[323688955,1714165852814,-500.0,0.00011232,2]
[323688956,1714165852823,-1013.72,0.00011232,2]
[323688957,1714165852833,-501.23263135,0.00011232,2]
[323688958,1714165852843,-500.0,0.00011232,2]
[323688959,1714165852853,-500.0,0.00011232,2]
[323688960,1714165852864,-718.21,0.00011232,2]
[323688961,1714165852873,-555.79,0.00011232,2]
[323688962,1714165852883,-6088.6,0.00011232,2]
[323688963,1714165852894,-500.0,0.00011232,2]
[323688964,1714165852904,-500.0,0.00011232,2]
[323688965,1714165852914,-1066.3,0.00011232,2]
[323688966,1714165852924,-505.04,0.00011232,2]
[323688967,1714165852935,-500.0,0.00011232,2]
[323688968,1714165852944,-500.0,0.00011232,2]
[323688969,1714165852954,-500.0,0.00011232,2]
[323688970,1714165852964,-500.0,0.00011232,2]
[323688971,1714165852974,-2410.31,0.00011232,2]
[323688972,1714165852983,-500.0,0.00011232,2]
[323688973,1714165852993,-820.43,0.00011232,2]
[323688974,1714165853003,-500.0,0.00011232,2]
[323688975,1714165853013,-500.0,0.00011232,2]
[323688976,1714165853022,-523.49,0.00011232,2]
[323688977,1714165853032,-500.0,0.00011232,2]
[323688978,1714165853042,-500.0,0.00011232,2]
[323688979,1714165853052,-500.0,0.00011232,2]
[323688980,1714165853061,-504.46913743,0.00011232,2]
[323688981,1714165853071,-908.81,0.00011232,2]
[323688982,1714165853081,-1371.32,0.00011232,2]
[323688983,1714165853091,-500.0,0.00011232,2]
[323688984,1714165853101,-560.23,0.00011232,2]
[323688985,1714165853110,-2025.12,0.00011232,2]
[323688986,1714165853120,-500.0,0.00011232,2]
[323688987,1714165853131,-641.15,0.00011232,2]
[323688988,1714165853141,-500.0,0.00011232,2]
[323688989,1714165853150,-500.0,0.00011232,2]
[323688990,1714165853160,-3137.06,0.00011232,2]
[323688991,1714165853169,-4702.4,0.00011232,2]
[323688992,1714165853179,-500.0,0.00011232,2]
[323688993,1714165853189,-500.0,0.00011232,2]
[323688994,1714165853198,-500.0,0.00011232,2]
[323688995,1714165853208,-344.72,0.00011232,2]
[323688996,1714165853218,-500.0,0.00011232,2]
[323688997,1714165853228,-500.0,0.00011232,2]
[323688998,1714165853238,-578.95,0.00011232,2]
[323688999,1714165853247,-500.0,0.00011232,2]
[323689000,1714165853257,-500.0,0.00011232,2]
[323689001,1714165853268,-500.0,0.00011232,2]
[323689002,1714165853280,-500.0,0.00011232,2]
[323689003,1714165853290,-418.44055964,0.00011232,2]
[323689004,1714165853299,-506.91037649,0.00011232,2]
[323689005,1714165853308,-500.0,0.00011232,2]
[323689006,1714165853318,-500.0,0.00011232,2]
[323689007,1714165853328,-500.0,0.00011232,2]
[323689008,1714165853337,-995.94,0.00011232,2]
[323689009,1714165853347,-2682.02,0.00011232,2]
[323689010,1714165853359,-500.0,0.00011232,2]
[323689011,1714165853369,-500.0,0.00011232,2]
[323689012,1714165853379,-500.0,0.00011232,2]
[323689013,1714165853390,-500.0,0.00011232,2]
[323689014,1714165853400,-500.0,0.00011232,2]
[323689015,1714165853410,-150.0,0.0001124,2]
[323689016,1714165853419,-150.0,0.00011256,2]
[323689017,1714165853429,-296.36987129,0.00011268,2]
[323689018,1714165853439,-739.75927914,0.00011287,3]
[323689019,1714165853449,-96240.4133438,0.00011288,2]
[323689020,1714165854089,-9840.98129079,0.00011288,2]
[323689021,1714165854101,-1601.74078846,0.00011288,2]
[323689022,1714165854113,-550.21105426,0.00011288,2]
[323689023,1714165854125,-376.17167403,0.00011288,2]
[323689024,1714165854488,-281.68,0.00011288,2]
[323689025,1714165854509,-1815.94,0.00010958,2]
[323689026,1714165854520,-29723.54111589,0.00011288,2]
[323689027,1714165854530,-1000.0,0.000113,2]
[323689028,1714165854539,-150.0,0.00011324,2]
[323689029,1714165854549,-150.0,0.00011364,2]
[323689030,1714165854559,-150.0,0.00011388,2]
[323689031,1714165854569,-3000.0,0.0001139,2]
[323689032,1714165854579,-3323.692847,0.000114,2]
[323689033,1714165854588,-48852.40068515,0.000114,2]
[323689034,1714165854598,-1000.0,0.000114,2]
[323689035,1714165854607,-1476.94,0.00011405,2]
[323689036,1714165854616,-5211.28438172,0.00011405,2]
[323689037,1714165854625,-2425.203459,0.00011406,2]
[323689038,1714165854634,-2425.203459,0.00011406,2]
[323689039,1714165854644,-296.36987129,0.00011406,2]
[323689040,1714165854653,-182888.8028,0.00011406,2]
[323689041,1714165854662,-177.55,0.00011406,2]
[323689042,1714165854672,-500.0,0.00011414,2]
[323689043,1714165854682,-5896.0,0.00011424,2]
[323689044,1714165854692,-2290.0,0.00011424,2]
[323689045,1714165854702,-767.0,0.00011426,2]
[323689046,1714165854711,-150.0,0.0001144,2]
[323689047,1714165854721,-150.0,0.00011441,2]
[323689048,1714165854731,-150.0,0.00011447,2]
[323689049,1714165854741,-150.0,0.00011455,2]
[323689050,1714165854751,-150.0,0.00011473,2]
[323689051,1714165854761,-220.27,0.0001148,2]
[323689052,1714165854772,-860.0367378,0.00011496,2]
[323689053,1714165854781,-636.4250894,0.00011496,2]
[323689054,1714165854791,-1763.1143721,0.00011496,2]
[323689055,1714165854800,-365.1190023,0.00011496,2]
[323689056,1714165854809,-1009.0,0.000115,2]
[323689057,1714165854819,-376.89577629,0.00011505,2]
[323689058,1714165854829,-207.25059114,0.00011505,2]
[323689059,1714165854839,-5846.4142757,0.00011505,2]
[323689060,1714165854850,-1476.94,0.00011505,2]
[323689061,1714165854859,-1476.94,0.00011505,2]
[323689062,1714165854869,-1476.94,0.00011505,2]
[323689063,1714165854878,-1000.0,0.00011506,2]
[323689064,1714165854887,-500.0,0.00011506,2]
[323689065,1714165854896,-500.0,0.00011506,2]
[323689066,1714165854906,-500.0,0.00011506,2]
[323689067,1714165854915,-500.0,0.00011506,2]
[323689068,1714165854924,-500.0,0.00011506,2]
[323689069,1714165854933,-500.0,0.00011506,2]
[323689070,1714165854942,-500.0,0.00011506,2]
[323689071,1714165854952,-500.0,0.00011506,2]
[323689072,1714165854962,-530.13,0.00011506,2]
[323689073,1714165854971,-500.0,0.00011506,2]
[323689074,1714165854981,-463.56962781,0.00011506,2]
[323689075,1714165854990,-500.0,0.00011506,2]
[323689076,1714165854999,-500.0,0.00011506,2]
[323689077,1714165855008,-500.0,0.00011506,2]
[323689078,1714165855019,-500.0,0.00011506,2]
[323689079,1714165855028,-615.87,0.00011506,2]
[323689080,1714165855037,-500.0,0.00011506,2]
[323689081,1714165855046,-637.44,0.00011506,2]
[323689082,1714165855056,-500.0,0.00011506,2]
[323689083,1714165855065,-500.0,0.00011506,2]
[323689084,1714165855074,-500.0,0.00011506,2]
[323689085,1714165855084,-500.0,0.00011506,2]
[323689086,1714165855093,-215.68,0.00011506,2]
[323689087,1714165855103,-500.0,0.00011506,2]
[323689088,1714165855112,-500.0,0.00011506,2]
[323689089,1714165855122,-500.0,0.00011506,2]
[323689090,1714165855131,-500.0,0.00011506,2]
[323689091,1714165855140,-500.0,0.00011506,2]
[323689092,1714165855150,-500.0,0.00011506,2]
[323689093,1714165855159,-609.49,0.00011506,2]
[323689094,1714165855171,-500.0,0.00011506,2]
[323689095,1714165855180,-654.47,0.00011506,2]
[323689096,1714165855190,-678.23,0.00011506,2]
[323689097,1714165855199,-613.12,0.00011506,2]
[323689098,1714165855208,-646.77,0.00011506,2]
[323689099,1714165855218,-880.46,0.00011506,2]
[323689100,1714165855227,-530.65,0.00011506,2]
[323689101,1714165855236,-1006.3,0.00011506,2]
[323689102,1714165855245,-182.93,0.00011506,2]
[323689103,1714165855255,-500.0,0.00011506,2]
[323689104,1714165855264,-500.0,0.00011506,2]
[323689105,1714165855276,-500.0,0.00011506,2]
[323689106,1714165855287,-500.0,0.00011506,2]
[323689107,1714165855297,-500.0,0.00011506,2]
[323689108,1714165855306,-1261.56,0.00011506,2]
[323689109,1714165855316,-1360.51,0.00011506,2]
[323689110,1714165855326,-500.0,0.00011506,2]
[323689111,1714165855335,-504.93,0.00011506,2]
[323689112,1714165855344,-1108.07,0.00011506,2]
[323689113,1714165855355,-500.0,0.00011506,2]
[323689114,1714165855365,-500.0,0.00011506,2]
[323689115,1714165855374,-822.7,0.00011506,2]
[323689116,1714165855383,-543.02,0.00011506,2]
[323689117,1714165855393,-500.0,0.00011506,2]
[323689118,1714165855402,-1146.38,0.00011506,2]
[323689119,1714165855412,-1304.31,0.00011506,2]
[323689120,1714165855422,-500.0,0.00011506,2]
[323689121,1714165855432,-560.91,0.00011506,2]
[323689122,1714165855442,-500.0,0.00011506,2]
[323689123,1714165855451,-500.0,0.00011506,2]
[323689124,1714165855460,-500.0,0.00011506,2]
[323689125,1714165855470,-500.0,0.00011506,2]
[323689126,1714165855479,-500.0,0.00011506,2]
[323689127,1714165855489,-500.0,0.00011506,2]
[323689128,1714165855498,-921.09,0.00011506,2]
[323689129,1714165855507,-500.0,0.00011506,2]
[323689130,1714165855516,-500.0,0.00011506,2]
[323689131,1714165855559,-700.07,0.00011506,2]
[323689132,1714165855570,-500.0,0.00011506,2]
[323689133,1714165855580,-500.0,0.00011506,2]
[323689134,1714165855591,-500.0,0.00011506,2]
[323689135,1714165855601,-1367.84,0.00011506,2]
[323689136,1714165855611,-748.97,0.00011506,2]
[323689137,1714165855623,-500.0,0.00011506,2]
[323689138,1714165855633,-760.98,0.00011506,2]
[323689139,1714165855644,-257.33956612,0.00011506,2]
[323689140,1714165855655,-500.0,0.00011506,2]
[323689141,1714165855665,-500.0,0.00011506,2]
[323689142,1714165855675,-500.0,0.00011506,2]
[323689143,1714165855685,-726.54,0.00011506,2]
[323689144,1714165855695,-550.92,0.00011506,2]
[323689145,1714165855705,-500.0,0.00011506,2]
[323689146,1714165855715,-1430.99,0.00011506,2]
[323689147,1714165855724,-570.48,0.00011506,2]
[323689148,1714165855735,-676.01,0.00011506,2]
[323689149,1714165855746,-500.0,0.00011506,2]
[323689150,1714165855758,-500.0,0.00011506,2]
[323689151,1714165855769,-500.0,0.00011506,2]
[323689152,1714165855779,-500.0,0.00011506,2]
[323689153,1714165855789,-1217.26,0.00011506,2]
[323689154,1714165855799,-500.0,0.00011506,2]
[323689155,1714165855810,-500.0,0.00011506,2]
[323689156,1714165855821,-173.10377099,0.00011506,2]
[323689157,1714165855831,-792.02,0.00011506,2]
[323689158,1714165855841,-500.0,0.00011506,2]
[323689159,1714165855850,-500.0,0.00011506,2]
[323689160,1714165855859,-500.0,0.00011506,2]
[323689161,1714165855869,-500.0,0.00011506,2]
[323689162,1714165855879,-500.0,0.00011506,2]
[323689163,1714165855889,-725.24,0.00011506,2]
[323689164,1714165855900,-500.0,0.00011506,2]
[323689165,1714165855911,-872.88,0.00011506,2]
[323689166,1714165855922,-940.41,0.00011506,2]
[323689167,1714165855932,-235.41,0.00011506,2]
[323689168,1714165855941,-500.0,0.00011506,2]
[323689169,1714165855950,-507.38930438,0.00011506,2]
[323689170,1714165855961,-509.95,0.00011506,2]
[323689171,1714165855971,-2000.0,0.00011506,2]
[323689172,1714165855980,-803.02,0.00011506,2]
[323689173,1714165855990,-363.21,0.00011506,2]
[323689174,1714165856000,-500.0,0.00011506,2]
[323689175,1714165856009,-500.0,0.00011506,2]
[323689176,1714165856020,-749.95,0.00011506,2]
[323689177,1714165856030,-527.35,0.00011506,2]
[323689178,1714165856039,-507.23532519,0.00011506,2]
[323689179,1714165856048,-500.0,0.00011506,2]
[323689180,1714165856058,-500.0,0.00011506,2]
[323689181,1714165856067,-579.07646005,0.00011506,2]
[323689182,1714165856077,-565.11,0.00011506,2]
[323689183,1714165856147,-656.68,0.00011506,2]
[323689184,1714165856156,-500.0,0.00011506,2]
[323689185,1714165856166,-626.53,0.00011506,2]
[323689186,1714165856177,-1008.89,0.00011506,2]
[323689187,1714165856187,-500.0,0.00011506,2]
[323689188,1714165856196,-837.59,0.00011506,2]
[323689189,1714165856205,-500.0,0.00011506,2]
[323689190,1714165856214,-525.53,0.00011506,2]
[323689191,1714165856225,-500.0,0.00011506,2]
[323689192,1714165856234,-565.57,0.00011506,2]
[323689193,1714165856244,-1849.17,0.00011506,2]
[323689194,1714165856254,-500.0,0.00011506,2]
[323689195,1714165856265,-1095.79,0.00011506,2]
[323689196,1714165856277,-500.0,0.00011506,2]
[323689197,1714165856289,-500.0,0.00011506,2]
[323689198,1714165856301,-500.0,0.00011506,2]
[323689199,1714165856312,-1100.72,0.00011506,2]
[323689200,1714165856323,-354.6739872,0.00011506,2]
[323689201,1714165856333,-500.0,0.00011506,2]
[323689202,1714165856344,-500.0,0.00011506,2]
[323689203,1714165856355,-500.0,0.00011506,2]
[323689204,1714165856366,-500.0,0.00011506,2]
[323689205,1714165856377,-500.0,0.00011506,2]
[323689206,1714165856386,-500.0,0.00011506,2]
[323689207,1714165856397,-500.0,0.00011506,2]
[323689208,1714165856408,-500.0,0.00011506,2]
[323689209,1714165856418,-500.0,0.00011506,2]
[323689210,1714165856428,-500.0,0.00011506,2]
[323689211,1714165856438,-609.39,0.00011506,2]
[323689212,1714165856449,-500.0,0.00011506,2]
[323689213,1714165856459,-1415.44,0.00011506,2]
[323689214,1714165856469,-500.0,0.00011506,2]
[323689215,1714165856478,-500.0,0.00011506,2]
[323689216,1714165856488,-4239.91,0.00011506,2]
[323689217,1714165856498,-721.08,0.00011506,2]
[323689218,1714165856508,-1912.14,0.00011506,2]
[323689219,1714165856518,-500.0,0.00011506,2]
[323689220,1714165856528,-500.0,0.00011506,2]
[323689221,1714165856539,-3795.37,0.00011506,2]
[323689222,1714165856548,-2873.58,0.00011506,2]
[323689223,1714165856558,-500.0,0.00011506,2]
[323689224,1714165856570,-500.0,0.00011506,2]
[323689225,1714165856580,-521.34,0.00011506,2]
[323689226,1714165856590,-5617.73,0.00011506,2]
[323689227,1714165856600,-256.44522037,0.00011506,2]
[323689228,1714165856609,-8630.93,0.00011506,2]
[323689229,1714165856618,-1052.38,0.00011506,2]
[323689230,1714165856628,-500.0,0.00011506,2]
[323689231,1714165856637,-500.0,0.00011506,2]
[323689232,1714165856646,-1229.82,0.00011506,2]
[323689233,1714165856655,-6867.51,0.00011506,2]
[323689234,1714165856665,-600.27,0.00011506,2]
[323689235,1714165856674,-505.3375091,0.00011506,2]
[323689236,1714165856683,-1794.51,0.00011506,2]
[323689237,1714165856693,-7720.32,0.00011506,2]
[323689238,1714165856703,-500.0,0.00011506,2]
[323689239,1714165856712,-1596.74,0.00011506,2]
[323689240,1714165856721,-2414.19,0.00011506,2]
[323689241,1714165856730,-500.0,0.00011506,2]
[323689242,1714165856740,-500.0,0.00011506,2]
[323689243,1714165856749,-500.0,0.00011506,2]
[323689244,1714165856759,-2546.68,0.00011506,2]
[323689245,1714165856768,-500.0,0.00011506,2]
[323689246,1714165856778,-11893.77,0.00011506,2]
[323689247,1714165856788,-500.0,0.00011506,2]
[323689248,1714165856797,-500.0,0.00011506,2]
[323689249,1714165856807,-500.0,0.00011506,2]
[323689250,1714165856816,-1472.99,0.00011506,2]
[323689251,1714165856825,-1714.54,0.00011506,2]
[323689252,1714165856834,-500.0,0.00011506,2]
[323689253,1714165856844,-3379.18,0.00011506,2]
[323689254,1714165856854,-500.0,0.00011506,2]
[323689255,1714165856864,-746.33,0.00011506,2]
[323689256,1714165856873,-1131.17,0.00011506,2]
[323689257,1714165856883,-500.0,0.00011506,2]
[323689258,1714165856892,-1362.32,0.00011506,2]
[323689259,1714165856901,-635.79,0.00011506,2]
[323689260,1714165856911,-1226.03,0.00011506,2]
[323689261,1714165856921,-6474.87,0.00011506,2]
[323689262,1714165856932,-1261.3,0.00011506,2]
[323689263,1714165856942,-626.49,0.00011506,2]
[323689264,1714165856953,-2565.0,0.00011506,2]
[323689265,1714165856963,-5265.92,0.00011506,2]
[323689266,1714165856974,-500.0,0.00011506,2]
[323689267,1714165856984,-7575.76,0.00011506,2]
[323689268,1714165856994,-959.47,0.00011506,2]
[323689269,1714165857005,-500.0,0.00011506,2]
[323689270,1714165857017,-894.84,0.00011506,2]
[323689271,1714165857028,-1029.44,0.00011506,2]
[323689272,1714165857038,-319.38,0.00011506,2]
[323689273,1714165857047,-1594.94,0.00011506,2]
[323689274,1714165857057,-500.0,0.00011506,2]
[323689275,1714165857067,-1585.92,0.00011506,2]